Cogmind - Beta 11.1 @@@ ROGUE MODE // 2022.11.18 @ 09:32:10 Player: Beepinex Result: Destroyed by D-53 Grenadier with Mini Grenade Launcher Performance ------------- Evolutions (0) 0 Regions Visited (2) 400 Robots Destroyed (33) 165 Value Destroyed (490) 490 Prototype IDs (6) 120 Alien Tech Used (0) 0 Bonus (-78) -78 TOTAL SCORE: 1097 Bonus ------- Friendly Fire -78 Cogmind --------- Core Integrity 0/250 Matter 299/300 Energy 160/160 System Corruption 0% Temperature Cool (36) Movement Treading (240) Ox1 Location -10/Mines Parts ------- > --- POWER (1) -------- Light Nuclear Core > --- PROPULSION (2) --- Light Treads > --- UTILITY (2) ------ Large Storage Unit > --- WEAPON (2) ------- Medium Laser Light Assault Rifle > --- INVENTORY (15) --- Ion Engine Ion Engine Improved Heat Sink Medium Battery (150) High-capacity Matter Pod (200) Sensor Array Improved Terrain Scanner Terrain Scan Processor Seismic Detector ECM Suite Small Laser Light Assault Rifle Rocket Launcher Mining Claw Peak State ------------ > --- POWER ------------ Light Nuclear Core > --- PROPULSION ------- Light Treads Light Treads > --- UTILITY ---------- Large Storage Unit Hacking Suite > --- WEAPON ----------- Medium Laser Rocket Launcher > --- INVENTORY -------- Ion Engine Ion Engine Improved Heat Sink Medium Battery High-capacity Matter Pod Sensor Array Improved Terrain Scanner Terrain Scan Processor Seismic Detector ECM Suite Light Armor Plating Small Laser Light Assault Rifle Light Assault Rifle Mining Claw [Rating: 14] Favorites ----------- Power Ion Engine Engine Ion Engine Power Core Light Nuclear Core Propulsion Light Treads Treads Light Treads Wheel Compact Wheel Utility Hacking Suite Device Seismic Detector Storage Large Storage Unit Hackware Hacking Suite Protection Light Armor Plating Weapon Light Assault Rifle Energy Gun Small Laser Ballistic Gun Light Assault Rifle Launcher Rocket Launcher Slashing Weapon Mining Claw Build | -11 -10 -10 ------- Run | Scr Mat Min Slots Evolved . | . . . Power . | . . . Propulsion . | . . . Utility . | . . . Weapon . | . . . Parts Attached 25 | 8 12 5 Power 2 | 1 . 1 Engine 1 | 1 . . Core 1 | . . 1 Reactor . | . . . Propulsion 6 | 3 2 1 Treads 3 | 1 1 1 Leg . | . . . Wheel 3 | 2 1 . Hover . | . . . Flight . | . . . Utility 6 | 2 3 1 Device 1 | 1 . . Storage 3 | 1 2 . Processor . | . . . Hackware 1 | . 1 . Protection 1 | . . 1 Artifact . | . . . Weapon 11 | 2 7 2 Energy Gun 5 | 1 4 . Energy Cannon . | . . . Ballistic Gun 4 | 1 2 1 Ballistic Cannon . | . . . Launcher 1 | . . 1 Special Weapon . | . . . Impact Weapon . | . . . Slashing Weapon 1 | . 1 . Piercing Weapon . | . . . Special Melee Weapon . | . . . Unidentified Prototypes . | . . . Parts Lost 5 | . 2 3 Power . | . . . Propulsion 2 | . . 2 Utility 2 | . 1 1 Weapon 1 | . 1 . Highest Loss Streak 2 | . 1 2 To Critical Strikes . | . . . Average Slot Usage (%) 99 | . 99 100 Engine 10 | . 14 4 Core 3 | . . 9 Treads 17 | . 14 23 Wheel 10 | . 14 4 Device 2 | . 3 . Storage 14 | . 14 14 Hackware 9 | . 10 8 Protection 2 | . . 5 Energy Gun 13 | . 13 14 Ballistic Gun 13 | . 13 13 Naked Turns . | . . . Heaviest Build 31 | 15 28 31 Greatest Support 40 | 20 20 40 Greatest Overweight (x) 1 | 1 1 1 Average Overweight (x) . | . . . Largest Inventory Capacity 15 | 8 15 15 Average Capacity 12 | 7 11 15 Most Carried 15 | 6 13 15 Average Carried 9 | 4 8 14 Final Capacity 15 | 8 15 15 Final Carried 14 | 5 13 14 Class Distribution -------------------- 93% | Mutant 6% | Scavenger-Mutant Dominant Class ---------------- Mutant | -10/Materials Mutant | -10/Mines Resources | -11 -10 -10 ----------- Run | Scr Mat Min Matter Collected 919 | 318 279 322 Remotely . | . . . Salvage Created 1065 | 156 668 241 Parts 62 | 10 43 9 Haulers Intercepted 2 | . 2 . Recyclers Shooed 1 | . 1 . Parts Field Recycled . | . . . Retrieved Matter . | . . . Parts Self-Destructed . | . . . Prevented . | . . . Kills | -11 -10 -10 ------- Run | Scr Mat Min Combat Hostiles Destroyed 35 | . 14 21 Guns 21 | . 14 7 AOE 14 | . . 14 Classes Destroyed 9 | 3 5 1 Worker 2 | 2 . . Tunneler 3 | 2 1 . Hauler 2 | . 2 . Recycler 3 | 1 2 . Operator 1 | . 1 . Watcher 3 | . 3 . Swarmer 12 | . 9 3 Grunt 7 | . 5 2 Assembled 16 | . . 16 Best Kill Streak 14 | 2 4 14 Combat Bots Only 14 | . 3 14 Max Kills in Single Turn 4 | 1 1 4 Gunslinging . | . . . Exploded 4 | . . 4 Melee . | . . . Uniques/NPCs Destroyed . | . . . Combat | -11 -10 -10 -------- Run | Scr Mat Min Damage Taken 1261 | . 519 742 Core 260 | . 66 194 Absorbed by Shields . | . . . Regen/Repaired (Parts) 70 | . 70 . Core Remaining (%) 100 | 100 . . Volleys Fired 113 | 18 55 40 Largest 2 | 1 2 2 Hottest 70 | 20 60 70 Shots Fired 191 | 18 107 66 Gun 183 | 18 107 58 Cannon . | . . . Launcher 8 | . . 8 Special . | . . . Kinetic 99 | 18 55 26 Thermal 71 | . 39 32 Explosive 8 | . . 8 Electromagnetic 13 | . 13 . Robot Hit Streak 12 | 5 8 12 Robot Miss Streak 6 | 3 3 6 Penetration Max . | . . . Secondary Targets . | . . . Shots Hit Robots 109 | 12 64 33 Core Hits 79 | 6 33 40 Critical Kills . | . . . Critical Parts Destroyed 1 | 1 . . Critical Strikes 3 | 1 . 2 Burn 2 | . . 2 Destroy 1 | 1 . . Melee Attacks 2 | . 2 . Impact . | . . . Slashing 2 | . 2 . Piercing . | . . . Sneak Attacks . | . . . Combat Hostiles . | . . . Follow-up Attacks . | . . . Damage Inflicted 2312 | 170 814 1328 Guns 1206 | 151 763 292 Cannons . | . . . Explosions 1076 | . 47 1029 Melee . | . . . Ramming 30 | 19 4 7 Kinetic 594 | 151 315 128 Thermal 536 | . 372 164 Explosive 1029 | . . 1029 Electromagnetic 123 | . 123 . Impact . | . . . Slashing . | . . . Piercing . | . . . Highest Corruption . | . . . Average Corruption . | . . . Corruption Purged . | . . . Corruption Blocked . | . . . Overload Shots . | . . . Overflow Damage 46 | . 37 9 Projectiles . | . . . Explosions 46 | . 37 9 Melee . | . . . Knockbacks . | . . . Impact . | . . . Kinetic . | . . . Secondary . | . . . Self-Inflicted Damage 65 | . 37 28 Shots 2 | . 1 1 Rammed 15 | 8 2 5 Targets Rammed 15 | 8 2 5 Kicked . | . . . Crushed . | . . . Highest Temperature 206 | . 58 206 Average Temperature 67 | . 20 86 Received Heat Transfer 311 | . 90 221 Siege Activations . | . . . Robots Corrupted . | . . . Combat Hostiles . | . . . Parts Fried . | . . . Impact Corruptions . | . . . Robots Melted . | . . . Combat Hostiles . | . . . Parts Melted 1 | . . 1 Heat Transferred 1404 | . 775 629 Parts Sabotaged . | . . . Parts Stolen . | . . . Parts Stripped . | . . . Power Chain Reactions 1 | . 1 . Missiles Intercepted . | . . . Alert | -11 -10 -10 ------- Run | Scr Mat Min Peak Influence 379 | 25 379 242 Initial 70 | . 16 70 Average 128 | 12 184 78 Maximum Alert Level 1 | . 1 1 Low Security (%) 80 | 100 64 98 Level 1 19 | . 35 1 Level 2 . | . . . Level 3 . | . . . Level 4 . | . . . Level 5 . | . . . High Security . | . . . Max Security . | . . . Squads Dispatched 2 | . 2 . Investigation 1 | . 1 . Extermination . | . . . Reinforcement 1 | . 1 . Assault . | . . . Garrison . | . . . Intercept . | . . . Searches Triggered . | . . . Construction Impeded . | . . . Haulers Reinforced . | . . . Active Scanning Responses . | . . . Cargo Convoy Interrupts . | . . . Stealth | -11 -10 -10 --------- Run | Scr Mat Min Distress Signals . | . . . Communications Jammed . | . . . Distress Signals . | . . . Times Spotted 47 | . 20 27 Peak Tracking Total 8 | . 5 8 Tactical Retreats 2 | . 1 1 Traps | -11 -10 -10 ------- Run | Scr Mat Min Traps Triggered 1 | . 1 . Indirectly . | . . . Trap Hack Attempts . | . . . Triggered . | . . . Disarmed . | . . . Reprogrammed . | . . . Reused . | . . . Traps Extracted . | . . . Installed . | . . . Triggered . | . . . Machines | -11 -10 -10 ---------- Run | Scr Mat Min Machines Disabled 1 | . 1 . Max in Single Turn 1 | . 1 . Machines Sabotaged . | . . . Garrisons Compromised . | . . . Overloaded Fab Kills . | . . . Hacking | -11 -10 -10 --------- Run | Scr Mat Min Machines Accessed 9 | . 9 . Terminals 7 | . 7 . Fabricators . | . . . Repair Stations 1 | . 1 . Recycling Units 1 | . 1 . Scanalyzers . | . . . Garrison Access . | . . . Total Hacks 34 | . 34 . Successful 27 | . 27 . Failed 7 | . 7 . Catastrophic 1 | . 1 . Database Lockouts . | . . . Manual 15 | . 15 . Terminals 27 | . 27 . Fabricators . | . . . Repair Stations 4 | . 4 . Recycling Units 3 | . 3 . Scanalyzers . | . . . Garrison Access . | . . . Terminal Hacks 16 | . 16 . Record 1 | . 1 . Robot Analysis 1 | . 1 . Prototype ID Bank 3 | . 3 . Branch Access Points 1 | . 1 . Locate Traps 3 | . 3 . Maintenance Status 1 | . 1 . Transport Status 1 | . 1 . Recall Investigation 2 | . 2 . Hauler Manifests 1 | . 1 . Registered Components 1 | . 1 . Zone Layout 1 | . 1 . Fabricator Hacks . | . . . Repair Station Hacks 4 | . 4 . Scan Component 2 | . 2 . Repair 2 | . 2 . Recycling Unit Hacks . | . . . Scanalyzer . | . . . Garrison Access Hacks . | . . . Unauthorized Hacks 7 | . 7 . Terminals 4 | . 4 . Track 1 | . 1 . Botnet 3 | . 3 . Fabricators . | . . . Repair Stations . | . . . Recycling Units 3 | . 3 . Reject 1 | . 1 . Recyclers 1 | . 1 . Mask 1 | . 1 . Scanalyzers . | . . . Garrison Access . | . . . Data Cores Recovered . | . . . Used . | . . . Hacking Detections 7 | . 7 . Full Trace Events 3 | . 3 . Feedback Events . | . . . Feedback Blocked . | . . . Robot Schematics Acquired . | . . . Robots Built . | . . . Authchips . | . . . Time . | . . . Total Robot Build Rating . | . . . Part Schematics Acquired . | . . . Parts Built . | . . . Authchips . | . . . Time . | . . . Total Part Build Rating . | . . . Parts Repaired 2 | . 2 . Time 52 | . 52 . Parts Recycled . | . . . Recycled Matter . | . . . Retrieved Matter . | . . . Retrieved Components . | . . . Parts Scanalyzed . | . . . Part Schematics Acquired . | . . . Parts Damaged . | . . . Bothacking | -11 -10 -10 ------------ Run | Scr Mat Min Used RIF Installer . | . . . Robots Hacked . | . . . Non-combat . | . . . Combat . | . . . Robot Hacks Applied . | . . . Relay Couplers Released . | . . . Fabnet Peak Effective % . | . . . Robots Rewired . | . . . Allies Hacked . | . . . Hacks Repelled . | . . . Allies | -11 -10 -10 -------- Run | Scr Mat Min Total Allies 3 | . . 3 Largest Group 3 | . . 3 Highest-Rated Group 40 | . . 40 Highest-Rated Ally 16 | . . 16 Total Orders . | . . . Ally Attacks 14 | . . 14 Total Damage 72 | . . 72 Kills 1 | . . 1 Allies Corrupted . | . . . Allies Melted . | . . . Intel | -11 -10 -10 ------- Run | Scr Mat Min Robot Analysis Total 1 | . 1 . Derelict Logs Recovered 2 | . . 2 Drone Launches . | . . . Drone Recoveries . | . . . Exploration | -11 -10 -10 ------------- Run | Scr Mat Min Turns Passed 2218 | 255 1194 769 Spaces Moved 1111 | 124 575 412 Core 4 | 4 . . Treads 463 | 99 103 261 Legs . | . . . Wheels 644 | 21 472 151 Hover . | . . . Flight . | . . . Fastest Speed 50 | 50 100 115 Average Speed 135 | 143 127 143 Slowest Speed 240 | 160 240 160 Overloaded Moves . | . . . Propulsion Burnouts . | . . . Robots Hopped . | . . . Cave-ins Triggered . | . . . Exploration Rate (%) 60 | 7 94 81 Regions Visited 2 Branch Regions 1 Pre-discovered Areas 2 | . . 2 Known Exits Taken 1 | . 1 . Unknown Exits Taken 1 | 1 . . Scrap Searched 1 | . . 1 Spaces Dug 1 | . 1 . Terrain Destroyed 54 | . 4 50 Melee 1 | . 1 . Projectile . | . . . AOE 53 | . 3 50 Terrain Rammed . | . . . Walls Destroyed . | . . . Machines Disabled . | . . . Actions | -11 -10 -10 --------- Run | Scr Mat Min Total 1630 | 179 926 525 Wait 316 | 8 248 60 Move 1109 | 123 574 412 Hop . | . . . Pick Up 38 | 13 22 3 Fast Attach 1 | . 1 . Attach 13 | 7 5 1 Detach . | . . . Swap 11 | 1 6 4 Drop 12 | 1 11 . Fire 113 | 18 55 40 Melee 2 | . 2 . Ram 1 | . 1 . Kick . | . . . Crush 14 | 8 1 5 Escape Stasis . | . . . Rewire . | . . . Trap . | . . . Miscellaneous . | . . . Route ------- -11/Scrapyard -10/Materials (discovered 4 exits: [*Mat x3] / *Min) -10/Mines History --------- Turn | Location | Event 40 | -11/Scrapyard | Discovered new exit (range 16) 256 | -11/Scrapyard | Entered Materials 314 | -10/Materials | Build established: Mutant 574 | -10/Materials | Identified exit to Mines 668 | -10/Materials | Discovered new exit (range 13) 857 | -10/Materials | Discovered new exit (range 15) 1136 | -10/Materials | Discovered new exit (range 16) 1270 | -10/Materials | Repaired Sml. Laser 1298 | -10/Materials | Repaired Lgt. Assault Rifle 1450 | -10/Materials | Entered Mines 1456 | -10/Mines | Learned location of Zion (-6) 1544 | -10/Mines | Received a Rocket Launcher from a helpful Derelict 1573 | -10/Mines | Learned location of Mines (-9) 1814 | -10/Mines | Assembled infested the area 1819 | -10/Mines | Assisted by a Guerilla fighting off Assembled 1824 | -10/Mines | Assisted by bots powering up and referring to "LRC-V3" 1847 | -10/Mines | Core integrity fell below 50% 1868 | -10/Mines | Destroyed 14 combat bots 1897 | -10/Mines | Core integrity fell below 20% 2219 | -10/Mines | Destroyed by D-53 Grenadier with Mini Grenade Launcher Last Messages --------------- 01932_ Found Aluminum Leg. 01932_ Found 21 Matter. 01933_ Acquired 21 matter. 01975_ The unstable cave ceiling collapses. 01985_ U-05 Engineer lays Concrete. 02041_ K-01 Serf cleans the Plasma Injector. 02059_ K-01 Serf collects debris. 02086_ U-05 Engineer builds a Wall. 02086_ K-01 Serf collects debris. 02091_ U-05 Engineer builds a Wall. 02098_ K-01 Serf collects debris. 02098_ U-05 Engineer lays Concrete. 02100_ U-05 Engineer builds a Wall. 02104_ U-05 Engineer lays Concrete. 02105_ The unstable cave ceiling collapses. 02105_ U-05 Engineer builds a Wall. 02116_ Acquired 4 matter. 02117_ Acquired 115 matter. 02215_ Lgt. Treads destroyed. 02216_ Lgt. Armor Plating destroyed. Map ----- +----------------------------------------------------+ | ?????????????????????????????????????? | | ?????????????????????????????????????? | | ?????????????????????????????????????? | | ?????????????????????????????????????? | | ?????????????????????????????????????? | | ?????????????????????????????????????? | | ?????????????????????????????????????? | | ?????????????????????????????????????? | | ????????????????????????##???????????? | | ????????????????????? #????##????? | | ???????????????????? #??# ???? | | ????????????????????# ## ????? | | ????????????????????# ????? | | ????????????????????? ?????? | | ?????????????????????# ?????? | | ???????????????????### #?????? | | ???????????????????# ##????? | | ???????????????????? ##???? | | ????????????????????? k #???? | | ?????????????????????? d #???? | | ??????????????????????? # d ????? | | ?????????????????????### ##????? | | ????????????????????## #????? | | ????????????????????# ##????? | | ????????????????????## #????? | | ????????????????????# @ ##????? | | ????????????????????# ##?????? | | ???????????####?????# ##??????? | | ############ ##????## #???????? | | ## #????# # ##???????? | | ##???# ####????????? | | ## ##### ##??# ###???????????? | | ## #???## ##?# #?????????????? | | ##### #????## ### #?????????????? | | ##???# #?????# ## #?????????????? | | #????# #?????# ## #?????????????? | | ###### #?????# #?????????????? | | #?????# #?????????????? | | ###### ##????## ######?????????????? | | #???## ##????## #??????????????????? | | ##?## ##????# #??????????????????? | | ### #????# #########??????????? | | #?#### #??????????? | | #?# ####### #??????????? | | ## ##?# #####?????? #??????????? | | ##?###??# #?????????? #??????????? | | ##???????# #?????????# #??????????? | | ##????????# #??####### ##?????????? | | ###?????????# #?## #?????????? | | #???????????# ### #?????????? | +----------------------------------------------------+ Best States ------------- Heat Dissipation 25 Energy Generation 14 Energy Capacity 250 Matter Stores 300 Matter Capacity 300 Sight Range 16 Terrain Scan Density 10 Armor Coverage 150 Evasion (%) 44 Recoil Reduction 2 Offensive Hacking 10 Item Schematics ----------------- None Robot Schematics ------------------ None Fabricated ------------ Nothing Alien Tech Used ----------------- None Achievements -------------- Exterminator Challenges ------------ None Game ------ Seed ZioniteTractorLaser Manual? 0 Play Time 00:22:12 Cumulative 41.0 hours Start 2022.11.18 @ 09:14:25 End 2022.11.18 @ 09:32:10 Sessions 1 Manual Loads 0 Difficulty Rogue Special Mode None Game No. 71 Rogue 71 Adventurer 0 Explorer 0 Win Type - Total 0 Types 0/0/0/0/0/0/0/0/0 Lore% 19 Gallery% 24 Achievement% 27 Wizard Run 0 Options --------- ASCII 0 Keyboard 0 Movement Mouse Keybinds 0 Fullscreen 2 Font 18/TerminusBold Map View 76x50 Tactical HUD 1 Map Filters NONE Filters NONE Steam 1 RUN: aa0d5a23-3a0d-4e7d-a49e-a8210e9b904e